{"text_format":"1","workbook":"xlsx","n_sheets":2,"sheets":["Bilanz EN","Bilanzanalyse"],"not_rendered":{"charts":0,"images":0,"macros":0,"external_links":0,"defined_names":0,"comments":0,"pivot_tables":0},"unopened":[],"bounds":{"document_bytes":16777216,"sheet_cells":100000,"rows_first":2000,"rows_last":500,"rows_between":2000,"halvings":0,"cell_chars":16384,"cell_head_chars":4096},"cells_cut":0,"cells_raw":0,"read":"whole","date_system":"1900"}

{"sheet":"Bilanz EN","index":0,"n_rows":59,"n_cols":4,"rows_kept":59,"cut":false,"hidden":false,"merged":[]}
[]
[null,"Consolidated statement of financial position (IFRS)"]
[null,"as of 31 March 2017"]
[null,null,"31 Mar 2017","30 Sep 2016"]
[null,null,"€ k","€ k"]
[null,"ASSETS"]
[null,"Non-current assets"]
[null,"Goodwill",166395,164578]
[null,"Other intangible assets",58511,53746]
[null,"Property, plant and equipment",64517,64509]
[null,"Other loans",141,2348]
[null,"Investments in affiliated non-consolidated companies",18941,0]
[null,"Investments",124,124]
[null,"Deferred taxes",83250,89621]
[null,"Non-current trade receivables",13327,11097]
[null,"Other non-current assets",4119,2874]
[null,null,409325,388897]
[null,"Current assets"]
[null,"Inventories",229412,208309]
[null,"Trade receivables",180896,189244]
[null,"Trade receivables from related parties",91698,60216]
[null,"Treasury receivables",672384,354528]
[null,"Tax refund claims",1394,5816]
[null,"Other current financial assets",6970,9962]
[null,"Other current non-financial assets",21518,20678]
[null,"Cash and cash equivalents",9308,8710]
[null,null,1213580,857463]
[null,"Assets held for sale",0,1370]
[null,null,1622905,1247730]
[null,"EQUITY AND LIABILITIES"]
[null,"Equity"]
[null,"Share capital",89441,81310]
[null,"Capital reserves",620137,313863]
[null,"Retained earnings",520073,458335]
[null,"Other components of equity",-31081,-55671]
[null,"Equity before non-controlling interests",1198570,797837]
[null,"Non-controlling interests",52584,53326]
[null,null,1251154,851163]
[null,"Non-current liabilities"]
[null,"Provisions for pensions and similar obligations",55644,81134]
[null,"Other non-current provisions",5876,5380]
[null,"Non-current financial liabilities",766,1610]
[null,"Non-current leasing liabilities",4848,6126]
[null,"Other non-current non-financial liabilities",5936,6023]
[null,"Deferred taxes",10344,10397]
[null,null,83414,110670]
[null,"Current liabilities"]
[null,"Current provisions",23812,22691]
[null,"Current accrued liabilities",70037,71168]
[null,"Current financial liabilities",17175,22720]
[null,"Current portion of non-current leasing liabilities",3032,2854]
[null,"Trade payables",55157,57105]
[null,"Current income tax payables",11929,15863]
[null,"Trade payables to related parties",30958,29426]
[null,"Treasury payables",44135,28656]
[null,"Other current non-financial liabilities",32102,35414]
[null,null,288337,285897]
[null,null,1622905,1247730]
[null,"The following notes are an integral part of the unaudited consolidated financial statements."]

{"sheet":"Bilanzanalyse","index":1,"n_rows":14,"n_cols":5,"rows_kept":14,"cut":false,"hidden":true,"merged":[[0,0,0,1]]}
["Abw. Dec./ Sep",null,"Begründung","davon\n erklärt","Differenz"]
[{"$f":"#REF!","v":{"$error":"#REF!"}},"Geschäfts- oder Firmenwert","Zugang IMEX 7,432 Mio.",{"$f":"7432","v":7432},{"$f":"A2-D2","v":{"$error":"#REF!"}}]
[{"$f":"#REF!","v":{"$error":"#REF!"}},"Immaterielle Vermögenswerte","Zugang IMEX 5,551 Mio."]
[{"$f":"#REF!","v":{"$error":"#REF!"}},"Sachanlagen","Zugang CZM AG 4,0 Mio. vor Afa (hauptsächlich Olymp ca. 3,2 Mio.); Übernahme Mietgeräte bei CZM VG aus Umlaufvermögen (+1,2 Mio.)"]
[{"$f":"#REF!","v":{"$error":"#REF!"}},"Forderungen aus Lieferungen und Leistungen","hierin enthalten 2,9 Mio. Alcon-Lizenzen, Cash-Zahlung erfolgt erst im Januar"]
[{"$f":"#REF!","v":{"$error":"#REF!"}},"Forderungen gegen nahe stehende Unternehmen","v.a. Umsatzanstieg Q1 CZM AG (Umsatz je Quartal: GJ 10/11 --> 113 Mio., Q1 11/12 --> 141 Mio.)  "]
[{"$f":"#REF!","v":{"$error":"#REF!"}},"Sonstige kurzfristige finanzielle Vermögenswerte","Anstieg aus CZM Inc. aufgrund der Umgliederung der Kreditkartenforderungen von kurzf. Nicht-finanz. Vw in kurzf. Finanz. Vermögenswerte (+1,3 Mio.). Anstieg CZM AG (+0,3 Mio.) für Zinsabgrenzungen (COBA + HVB)",{"$f":"1300+300","v":1600},{"$f":"A7-D7","v":{"$error":"#REF!"}}]
[{"$f":"#REF!","v":{"$error":"#REF!"}},"Sonstige kurzfristige nicht-finanzielle Vermögenswerte","Kompensation des Umgliederungseffektes USA durch CZM F (+0,6 Mio., u.a. UST, ARAP), CZM AG (+0,4 Mio.) "]
[1207,"Andere langfristige Rückstellungen","IMEX earn out Anteil +2,218 Mio.; Kompensation durch CZM AG (-915 TEUR ATZ, -142 TEUR Verbrauch ERA RST und sonstiges)",{"$f":"(2.218-0.915-0.142)*1000","v":1161},46]
[{"$f":"#REF!","v":{"$error":"#REF!"}},"Kurzfristige Rückstellungen","IMEX earn out Anteil +2,149 Mio., Abgrenzung KöSteuer +1,5 Mio. (CZM AG), RST für Gewährleistungen pauschal +0,55 Mio. (CZM AG), Konzernrückstellung Q1 für Projekttehmen +0,85 Mio., Auflösung RST für Bonuszahlung im Dezember + RST-Bildung für geschätzte Logistikosten (CZM Japan), Zuführung RST CZM Inc. für Ferien, Warenrückgabe und Gewährleistung",{"$f":"(2.149+1.5+0.55+0.85)*1000","v":5048.9999999999991},{"$error":"#REF!"}]
[{"$f":"#REF!","v":{"$error":"#REF!"}},"Kurzfristige abgegrenzte Verbindlichkeiten","Auszahlung Renumeration für FY 10/11 CZM VG -0,8 Mio. (hier auch Reduzierung RST für ausstehende Rechnung enthalten) und USA -3,1 Mio. (u.a. MBO-Bonus, Super-Bonus); z.T. Kompensation/ Anstieg durch unterjährige Rechnungsabgrenzungen + Risiken CZM AG +1,36 Mio. (davon 0,6 Mio. Konzern-RST bzw. 0,3 Mio. CZM-Verbundene, die im Konzern wieder eliminiert werden); CZM SAS + FCI -04 Mio. Rückgang Personalverbindlichkeiten aufgrund erfolgter Bonuszahlung im Dez 11",{"$f":"(-0.8-3.1+1.36-0.3-0.4)*1000","v":-3239.9999999999995},{"$error":"#REF!"}]
[{"$f":"#REF!","v":{"$error":"#REF!"}},"Kurzfristige finanzielle Verbindlichkeiten","Devisentermingeschäfte CZM AG +3,3 Mio. EUR, Reduzierung ausstehende Checks USA aufgrund von Lieferantenzahlungen -0,6 Mio.",{"$f":"(3.3-0.6)*1000","v":2699.9999999999995},{"$error":"#REF!"}]
[{"$f":"#REF!","v":{"$error":"#REF!"}},"Verbindlichkeiten aus Lieferungen und Leistungen","CZM AG: Umstellung Lieferantenzahlungen auf tägliche Zahlungen nach Fälligkeit ab Q1 2012 (-3,9 Mio.)"]
[{"$f":"#REF!","v":{"$error":"#REF!"}},"Sonstige kurzfristige nicht-finanzielle Verbindlichkeiten","CZM AG: Lohnsteuerverbindlichkeiten +2,0 Mio. (Prämienzahlung 31.12.) , Lizenzen Alcon +2,2 Mio. Erhaltene Anzahlungen -1,0 Mio.,\nCZM VG: Erhöhung \"erhaltene Anzahlungen\" und Lohnsteuerverbindlichkeiten zum 31.12. (+0,6 Mio.)\nCZM Inc: Service-RST (+0,5 Mio.), abgegrenzter Service-Ertrag (+0,4 Mio.)\nCZM Japan: Bonuszahlung Dez 11 (+0,4 Mio.), Kundenvorauszahlungen OPMI Lumera + Vario (+0,5 Mio.), U-Anteil soziale Sicherheit (+0,2 Mio.)\nCZM Spanien: abgegrenter Ertrag (+0,3 Mio.) ",{"$f":"(2+2.2-1+0.6+0.5+0.4+0.4+0.5+0.2+0.3)*1000","v":6100.0000000000018},{"$error":"#REF!"}]